{"text_format":"1","workbook":"xlsx","n_sheets":1,"sheets":["Sheet1"],"not_rendered":{"charts":0,"images":0,"macros":0,"external_links":0,"defined_names":0,"comments":0,"pivot_tables":0},"unopened":[],"bounds":{"document_bytes":16777216,"sheet_cells":100000,"rows_first":2000,"rows_last":500,"rows_between":2000,"halvings":0,"cell_chars":16384,"cell_head_chars":4096},"cells_cut":0,"cells_raw":0,"read":"whole","date_system":"1900"}

{"sheet":"Sheet1","index":0,"n_rows":231,"n_cols":16,"rows_kept":231,"cut":false,"hidden":false,"merged":[[156,10,156,14],[5,3,5,6],[4,3,4,6],[3,3,3,6],[9,3,9,6],[8,3,8,6],[7,3,7,6],[6,3,6,6],[1,3,1,6],[20,2,20,4],[21,2,21,4],[16,2,16,6],[17,2,17,6],[14,3,14,6],[13,3,13,6],[11,3,11,6],[10,3,10,6]]}
[]
[null,null,null,"Реквизиты для заказа"]
[]
[null,null,"Организация (ИП):"]
[null,null,"Адрес:"]
[null,null,"ИНН/КПП:"]
[null,null,"ОГРН:"]
[null,null,"Юр.адрес:"]
[null,null,"р/с:"]
[null,null,"к/с:"]
[null,null,"Банк:"]
[null,null,"Трансп. комп. в Москве:"]
[null,null,"Адрес доставки груза:"]
[null,null,"Моб. телефон:"]
[null,null,"Эл.почта:"]
[]
[null,null,"Наличие перчаток на складе (текущее)"]
[null,null,"12.12.2015г."]
[null,null,"Цены указаны в руб."]
[null,null,"№","Наименование товаров","Цена",null,"Заказать, шт.","Сумма, руб.",null,null,null,"Размеры"]
[null,null,"Перчатки",null,null,null,null,null,null,6,6.5,7,7.5,8,8.5]
[null,null,"Перчатки женские"]
[null,null,1,"Перчатки женские 0226(мех) (шт.)",1077,null,null,{"$f":"E23*G23","v":0}]
[null,null,2,"Перчатки женские 059(лак) (шт.)",968,null,null,{"$f":"E24*G24","v":0}]
[null,null,3,"Перчатки женские 0959 (шт.)",545,null,null,{"$f":"E25*G25","v":0}]
[null,null,4,"Перчатки женские 1004 (шт.)",811,null,null,{"$f":"E26*G26","v":0}]
[null,null,5,"Перчатки женские 1012 (плюш) (шт.)",581,null,null,0]
[null,null,6,"Перчатки женские 1022",617,null,null,0]
[null,null,7,"Перчатки женские 1047 (шт.)",811,null,null,0]
[null,null,8,"Перчатки женские 1047 (замша) (шт.)",678,null,null,0]
[null,null,9,"Перчатки женские 1050",617,null,null,0]
[null,null,10,"Перчатки женские 1051",617,null,null,0]
[null,null,11,"Перчатки женские 1051 (мех) (шт.)",1065,null,null,0]
[null,null,12,"Перчатки женские 1051-1",811,null,null,0]
[null,null,13,"Перчатки женские 1052",811,null,null,0]
[null,null,14,"Перчатки женские 1052-1",811,null,null,0]
[null,null,15,"Перчатки женские 1053",665,null,null,0]
[null,null,16,"Перчатки женские 1056",617,null,null,0]
[null,null,17,"Перчатки женские 1080",665,null,null,0]
[null,null,18,"Перчатки женские 1082(шелк)",799,null,null,0]
[null,null,19,"Перчатки женские 1130 (плюш) (шт.)",363,null,null,0]
[null,null,20,"Перчатки женские 1132 (плюш) (шт.)",363,null,null,0]
[null,null,21,"Перчатки женские 1135 (плюш) (шт.)",363,null,null,0]
[null,null,22,"Перчатки женские 1136 (плюш) (шт.)",363,null,null,0]
[null,null,23,"Перчатки женские 1138 (плюш) (шт.)",363,null,null,0]
[null,null,24,"Перчатки женские 1149 (шт.)",569,null,null,0]
[null,null,25,"Перчатки женские 1170 (шт.)",811,null,null,0]
[null,null,26,"Перчатки женские 12103 (шт.)",787,null,null,0]
[null,null,27,"Перчатки женские 12109 (длинные) (шт.)",1162,null,null,0]
[null,null,28,"Перчатки женские 12115 (шт.)",883,null,null,0]
[null,null,29,"Перчатки женские 12151 (шт.)",762,null,null,{"$f":"E51*G51","v":0}]
[null,null,30,"Перчатки женские 12153 (шт.)",823,null,null,{"$f":"E52*G52","v":0}]
[null,null,31,"Перчатки женские 12159 (шт.)",787,null,null,{"$f":"E53*G53","v":0}]
[null,null,32,"Перчатки женские 12165 (шт.)",835,null,null,0]
[null,null,33,"Перчатки женские 1223 (шт.)",787,null,null,0]
[null,null,34,"Перчатки женские 1254 (шт.)",811,null,null,0]
[null,null,35,"Перчатки женские 1255 (шт.)",774,null,null,0]
[null,null,36,"Перчатки женские 1265 (шт.)",799,null,null,0]
[null,null,37,"Перчатки женские 1269 (шт.)",835,null,null,0]
[null,null,38,"Перчатки женские 1271 (шт.)",787,null,null,0]
[null,null,39,"Перчатки женские 1281 (шт.)",799,null,null,0]
[null,null,40,"Перчатки женские 1283 (шт.)",787,null,null,0]
[null,null,41,"Перчатки женские 1291 (шт.)",787,null,null,0]
[null,null,42,"Перчатки женские 1500 (мех) (шт.)",1113,null,null,0]
[null,null,43,"Перчатки женские 1552 (замша) (шт.)",678,null,null,0]
[null,null,44,"Перчатки женские 162 (шт.)",835,null,null,0]
[null,null,45,"Перчатки женские 1751 (шт.)",811,null,null,{"$f":"E67*G67","v":0}]
[null,null,46,"Перчатки женские 19368 (шт.)",774,null,null,0]
[null,null,47,"Перчатки женские 19422 (шт.)",545,null,null,0]
[null,null,48,"Перчатки женские 19478 (шт.)",859,null,null,0]
[null,null,49,"Перчатки женские 2133(плюш) (шт.)",424,null,null,0]
[null,null,50,"Перчатки женские 2202 (шт.)",714,null,null,0]
[null,null,51,"Перчатки женские 2204 (шт.)",714,null,null,0]
[null,null,52,"Перчатки женские 2208 (шт.)",629,null,null,0]
[null,null,53,"Перчатки женские 2716 (шт.)",811,null,null,0]
[null,null,54,"Перчатки женские 290 (шт.)",545,null,null,0]
[null,null,55,"Перчатки женские 3059(длинные) (шт.)",448,null,null,0]
[null,null,56,"Перчатки женские 310 (шт.)",762,null,null,0]
[null,null,57,"Перчатки женские 39642(замша) (шт.)",653,null,null,0]
[null,null,58,"Перчатки женские 460-3 (шт.)",5454,null,null,0]
[null,null,59,"Перчатки женские 5020 (мех) (шт.)",1198,null,null,0]
[null,null,60,"Перчатки женские 5176 (шт.)",811,null,null,0]
[null,null,61,"Перчатки женские 5241 (шт.)",811,null,null,0]
[null,null,62,"Перчатки женские 5338 (вод.) (шт.)",629,null,null,0]
[null,null,63,"Перчатки женские 5340 (шт.)",1029,null,null,0]
[null,null,64,"Перчатки женские 5502 (шелк) (шт.)",787,null,null,{"$f":"E86*G86","v":0}]
[null,null,65,"Перчатки женские 5532-3 (шт.)",545,null,null,{"$f":"E87*G87","v":0}]
[null,null,66,"Перчатки женские 5589 (коричневые) (шт.)",823,null,null,{"$f":"E88*G88","v":0}]
[null,null,67,"Перчатки женские 5609 (замша) (шт.)",557,null,null,0]
[null,null,68,"Перчатки женские 5609 (замша,коричневые) (шт.)",557,null,null,0]
[null,"кл",69,"Перчатки женские 5613 (бежевые) (шт.)",557,null,null,0]
[null,null,70,"Перчатки женские 5646",617,null,null,0]
[null,null,71,"Перчатки женские 5698(кролик, корич.) (шт.)",1065,null,null,0]
[null,null,72,"Перчатки женские 5698(шелк) (шт.)",787,null,null,0]
[null,"кл",73,"Перчатки женские 5701 (темн. зеленые) (шт.)",557,null,null,0]
[null,null,74,"Перчатки женские 5703 (шт.)",956,null,null,0]
[null,null,75,"Перчатки женские 5818 (шт.)",702,null,null,0]
[null,null,76,"Перчатки женские 5827 (шт.)",835,null,null,0]
[null,null,77,"Перчатки женские 5835 (шт.)",823,null,null,0]
[null,null,78,"Перчатки женские 5836 (шт.)",702,null,null,0]
[null,null,79,"Перчатки женские 6032 (мех) (шт.)",920,null,null,0]
[null,null,80,"Перчатки женские 6050 (кролик) (шт.)",1113,null,null,0]
[null,null,81,"Перчатки женские 6051 (шт.)",641,null,null,{"$f":"E103*G103","v":0}]
[null,null,82,"Перчатки женские 6087 (шт.)",424,null,null,0]
[null,"кл",83,"Перчатки женские 6113 ( зеленые) (шт.)",351,null,null,{"$f":"E105*G105","v":0}]
[null,"кл",84,"Перчатки женские 6113 (темн. зеленые) (шт.)",351,null,null,0]
[null,null,85,"Перчатки женские 6170 (голубые) (шт.)",690,null,null,0]
[null,"кл",86,"Перчатки женские 6261 (желтый)(шт.) ",351,null,null,{"$f":"E108*G108","v":0}]
[null,"кл",87,"Перчатки женские 6261 (бежевый)(шт.) ",351,null,null,0]
[null,"кл",88,"Перчатки женские 6282 (шт.)",357,null,null,0]
[null,null,89,"Перчатки женские 6290-3(замша) (шт.)",569,null,null,0]
[null,"кл",90,"Перчатки женские 6303 (шт.)",557,null,null,0]
[null,null,91,"Перчатки женские 6307(замша) (шт.)",726,null,null,0]
[null,null,92,"Перчатки женские 6311",617,null,null,0]
[null,null,93,"Перчатки женские 6313(шелк,розовые, зеленые и др.) (шт.)",363,null,null,0]
[null,"кл",94,"Перчатки женские 6329 (розовые), малиновые,сирень) (шт.)",351,null,null,0]
[null,"кл",95,"Перчатки женские 6350 (шт.)",557,null,null,0]
[null,null,96,"Перчатки женские 6355 (шт.)",956,null,null,0]
[null,null,97,"Перчатки женские 6362(красные) (шт.)",557,null,null,0]
[null,null,98,"Перчатки женские 6375 (шт.)",411,null,null,0]
[null,null,99,"Перчатки женские 6376 (шт.)",617,null,null,0]
[null,null,100,"Перчатки женские 6436 (шт.)",1029,null,null,0]
[null,null,101,"Перчатки женские 6452-K1 (шт.)",835,null,null,0]
[null,null,102,"Перчатки женские 6465 (белые) (шт.)",315,null,null,0]
[null,"кл",103,"Перчатки женские 6615( черные) (шт.) ",351,null,null,{"$f":"E125*G125","v":0}]
[null,"кл",104,"Перчатки женские 6615( коричневые) (шт.) ",351,null,null,0]
[null,null,105,"Перчатки женские 6675(шелк) (шт.)",980,null,null,0]
[null,null,106,"Перчатки женские 6678(вод. белые) (шт.)",629,null,null,{"$f":"E128*G128","v":0}]
[null,null,107,"Перчатки женские 6678(вод.) (шт.)",629,null,null,0]
[null,null,108,"Перчатки женские 6680 (шт.)",653,null,null,0]
[null,null,109,"Перчатки женские 6783(замша) (шт.)",557,null,null,0]
[null,"кл",110,"Перчатки женские 6788 (шт.)",557,null,null,0]
[null,null,111,"Перчатки женские 7228 (шт.)",1029,null,null,0]
[null,null,112,"Перчатки женские 7260 (шт.)",1077,null,null,0]
[null,null,113,"Перчатки женские 7352(плюш) (шт.)",811,null,null,0]
[null,null,114,"Перчатки женские 8355(замша) (шт.)",424,null,null,0]
[null,null,115,"Перчатки женские 836(олень)",908,null,null,0]
[null,null,116,"Перчатки женские 839(олень)",908,null,null,{"$f":"E138*G138","v":0}]
[null,null,117,"Перчатки женские 9078 (шт.)",714,null,null,{"$f":"E139*G139","v":0}]
[null,null,118,"Перчатки женские 9130 (шт.)",908,null,null,0]
[null,null,119,"Перчатки женские 9394 (замша) (шт.)",811,null,null,0]
[null,null,120,"Перчатки женские 9395 (шт.)",811,null,null,0]
[null,null,121,"Перчатки женские 9397 (шт.)",811,null,null,0]
[null,null,122,"Перчатки женские 9398 (шт.)",811,null,null,0]
[null,null,123,"Перчатки женские 9398 (мех) (шт.)",1065,null,null,0]
[null,null,124,"Перчатки женские 9399 (шт.)",811,null,null,0]
[null,null,125,"Перчатки женские 9400 (шт.)",811,null,null,0]
[null,null,126,"Перчатки женские 9401 (шт.)",811,null,null,0]
[null,null,127,"Перчатки женские 9405 (шт.)",811,null,null,{"$f":"E149*G149","v":0}]
[null,null,128,"Перчатки женские 9405 (мех) (шт.)",1065,null,null,0]
[null,null,129,"Перчатки женские 9407 (шт.)",811,null,null,0]
[null,null,130,"Перчатки женские 9704",617,null,null,0]
[null,null,131,"Перчатки женские 9704(кролик)",1016,null,null,0]
[null,"кл",132,"Перчатки женские 9704(красные) (шт.)",351,null,null,0]
[null,null,133,"Перчатки женские 9827 (мех) (шт.)",1077,null,null,{"$f":"E155*G155","v":0}]
[null,null,134,"Перчатки женские G3-030 ",545,null,null,{"$f":"E156*G156","v":0}]
[]
[null,null,null,"ПЕРЧАТКИ МУЖСКИЕ",null,null,null,null,null,8,8.5,9,9.5,10,10.5,11]
[null,null,176,"Перчатки мужские 10079 (шт.)",690,null,null,{"$f":"E159*G159","v":0}]
[null,null,177,"Перчатки мужские 104 (шт.)",714,null,null,0]
[null,null,178,"Перчатки мужские 1076 (шт.)",968,null,null,0]
[null,null,179,"Перчатки мужские 1076-3 (Мех) (шт.)",1077,null,null,0]
[null,null,180,"Перчатки мужские 1076-5 (Мех) (шт.)",605,null,null,0]
[null,null,181,"Перчатки мужские 1108 (олень,плюш) (шт.)",895,null,null,0]
[null,null,182,"Перчатки мужские 1113-3",1198,null,null,0]
[null,null,183,"Перчатки мужские 1124-5 (Мех) (шт.)",714,null,null,0]
[null,null,184,"Перчатки мужские 1126-3 (шт.)",895,null,null,0]
[null,null,185,"Перчатки мужские 1129 (олень)",617,null,null,0]
[null,null,186,"Перчатки мужские 114 (шт.)",968,null,null,0]
[null,null,187,"Перчатки мужские 1175-3 (мех) (шт.)",956,null,null,0]
[null,null,188,"Перчатки мужские 1183 (шт.)",908,null,null,0]
[null,null,189,"Перчатки мужские 1200(вод. рыжие) (шт.)",823,null,null,0]
[null,null,190,"Перчатки мужские 121 (шт.)",714,null,null,{"$f":"E173*G173","v":0}]
[null,null,191,"Перчатки мужские 1210 (шт.)",871,null,null,0]
[null,null,192,"Перчатки мужские 12100 (олень) (шт.)",811,null,null,0]
[null,null,193,"Перчатки мужские 1212 (шт.)",859,null,null,0]
[null,null,194,"Перчатки мужские 1212-Н (шт.)",823,null,null,0]
[null,null,195,"Перчатки мужские 1230 (шт.)",811,null,null,0]
[null,null,196,"Перчатки мужские 1240 (шт.)",823,null,null,0]
[null,null,197,"Перчатки мужские 1248 (шт.)",641,null,null,0]
[null,null,198,"Перчатки мужские 1257(CAR-DO) (вод.) (шт.)",384,null,null,{"$f":"E181*G181","v":0}]
[null,null,199,"Перчатки мужские 1257(CAR-SH)(вод.) (шт.)",620,null,null,0]
[null,null,200,"Перчатки мужские 1257(вод. рыжие) (шт.)",617,null,null,0]
[null,null,201,"Перчатки мужские 126 (шт.)",811,null,null,{"$f":"E184*G184","v":0}]
[null,null,202,"Перчатки мужские 1268 (шт.)",811,null,null,{"$f":"E185*G185","v":0}]
[null,null,203,"Перчатки мужские 1282 (шт.)",895,null,null,{"$f":"E186*G186","v":0}]
[null,null,204,"Перчатки мужские 1288 (олень) (шт.)",895,null,null,{"$f":"E187*G187","v":0}]
[null,null,205,"Перчатки мужские 1290 (олень) (шт.)",895,null,null,{"$f":"E188*G188","v":0}]
[null,null,206,"Перчатки мужские 1294 (олень) (шт.)",520,null,null,0]
[null,null,207,"Перчатки мужские 132 (шт.)",823,null,null,0]
[null,null,208,"Перчатки мужские 1332 (шт.)",895,null,null,{"$f":"E191*G191","v":0}]
[null,null,209,"Перчатки мужские 1401 (олень) (шт.)",895,null,null,0]
[null,null,210,"Перчатки мужские 1411 (олень)",581,null,null,0]
[null,null,211,"Перчатки мужские 1412 (замша)",895,null,null,0]
[null,null,212,"Перчатки мужские 1412 (олень)",895,null,null,0]
[null,null,213,"Перчатки мужские 1413-В (олень)",895,null,null,0]
[null,null,214,"Перчатки мужские 1414 (олень)",581,null,null,0]
[null,null,215,"Перчатки мужские 1415 (замша)",581,null,null,0]
[null,null,216,"Перчатки мужские 146",895,null,null,0]
[null,null,217,"Перчатки мужские 1462 (олень)",932,null,null,0]
[null,null,218,"Перчатки мужские 1516 (шт.)",956,null,null,{"$f":"E201*G201","v":0}]
[null,null,219,"Перчатки мужские 2038(олень) (шт.)",992,null,null,{"$f":"E202*G202","v":0}]
[null,null,220,"Перчатки мужские 2205",690,null,null,{"$f":"E203*G203","v":0}]
[null,null,221,"Перчатки мужские 3021-3",690,null,null,0]
[null,null,222,"Перчатки мужские 3028-3",823,null,null,{"$f":"E205*G205","v":0}]
[null,null,223,"Перчатки мужские 3311",714,null,null,0]
[null,null,224,"Перчатки мужские 3312",895,null,null,{"$f":"E207*G207","v":0}]
[null,null,225,"Перчатки мужские 5134 ",920,null,null,0]
[null,null,226,"Перчатки мужские 5134 (мех) (шт.)",908,null,null,0]
[null,null,227,"Перчатки мужские 5804-М  (шт.)",690,null,null,0]
[null,null,228,"Перчатки мужские 629-3",690,null,null,0]
[null,null,229,"Перчатки мужские 6880-3",895,null,null,0]
[null,null,230,"Перчатки мужские 6880-О(олень)",532,null,null,{"$f":"E213*G213","v":0}]
[null,null,231,"Перчатки мужские 7001",532,null,null,{"$f":"E214*G214","v":0}]
[null,null,232,"Перчатки мужские 7002",532,null,null,{"$f":"E215*G215","v":0}]
[null,null,233,"Перчатки мужские 7003",690,null,null,{"$f":"E216*G216","v":0}]
[null,null,234,"Перчатки мужские 866-3",835,null,null,0]
[null,null,235,"Перчатки мужские 882",520,null,null,{"$f":"E218*G218","v":0}]
[null,null,236,"Перчатки мужские 905 (CAR-DE) (вод)",715,null,null,{"$f":"E219*G219","v":0}]
[null,null,237,"Перчатки мужские 905 (вод)",690,null,null,0]
[null,null,238,"Перчатки мужские 9856-3",883,null,null,0]
[null,null,239,"Перчатки мужские S1 002 (замша)",581,null,null,0]
[null,null,240,"Перчатки мужские S1 005 (замша)",581,null,null,0]
[null,null,241,"Перчатки мужские S1 042 (замша)",581,null,null,0]
[null,null,242,"Перчатки мужские S1 054 (замша)",581,null,null,0]
[null,null,null,null,null,null,null,0]
[]
[null,null,"Итого:",null,null,null,{"$f":"SUM(G23:G227)","v":0},{"$f":"SUM(H23:H227)","v":0}]
[]
[]
[null,null,null,"`"]